fUST/lending_fUST_20250305
["ID","MTS","AMOUNT","RATE_DAILY","PERIOD"]
[355408458,1741111847866,-500.0,0.00046027,120]
[355408459,1741111847875,-500.0,0.00046027,120]
[355408460,1741111847885,-500.0,0.00046027,120]
[355408461,1741111847895,-500.0,0.00046027,120]
[355408462,1741111847905,-42019.23,0.00046027,7]
[355408463,1741111847916,-2853.89,0.00046027,120]
[355408464,1741111847926,-775.13819293,0.00046075,95]
[355408465,1741111847936,-150.129,0.0004609,120]
[355408466,1741111847946,-500.0,0.00046092,30]
[355408467,1741111847957,-322.23933771,0.00046099,2]
[355408468,1741111847968,-341.0,0.000461,24]
[355408469,1741111847978,-250.0,0.000461,24]
[355408470,1741111847988,-903.13648244,0.00046152,2]
[355408471,1741111847998,-775.13819293,0.00046175,97]
[355408472,1741111848008,-10532.20599452,0.000462,60]
[355408473,1741111848018,-447.71,0.000462,30]
[355408474,1741111848028,-436.39,0.000462,30]
[355408475,1741111848039,-775.13819293,0.00046275,92]
[355408476,1741111848049,-500.0,0.00046277,30]
[355408477,1741111848059,-150.129,0.00046283,120]
[355408478,1741111848069,-150.0,0.00046301,2]
[355408479,1741111848078,-226.656651,0.00046301,30]
[355408480,1741111848088,-237.711062,0.00046319,120]
[355408481,1741111848098,-775.13819293,0.00046375,95]
[355408482,1741111848113,-34560.1100037,0.000464,120]
[355408483,1741111848123,-821.830118,0.000464,120]
[355408484,1741111848133,-821.830127,0.000464,120]
[355408485,1741111848143,-151.0,0.000464,120]
[355408486,1741111848153,-151.0,0.000464,120]
[355408487,1741111848163,-1006.804361,0.000464,52]
[355408488,1741111848174,-775.13819293,0.00046475,100]
[355408489,1741111848185,-999.0,0.0004649,120]
[355408490,1741111848196,-500.0,0.00046532,2]
[355408491,1741111848206,-1000.0,0.00046552,10]
[355408492,1741111848216,-775.13819293,0.00046575,91]
[355408493,1741111848226,-150.0,0.00046575,2]
[355408494,1741111848235,-500.0,0.00046575,120]
[355408495,1741111848246,-500.0,0.00046575,120]
[355408496,1741111848256,-456.99,0.00046575,120]
[355408497,1741111848266,-351.44,0.00046575,120]
[355408498,1741111848276,-500.0,0.00046575,120]
[355408499,1741111848288,-500.0,0.00046575,120]
[355408500,1741111848299,-500.0,0.00046575,120]
[355408501,1741111848309,-643.22,0.00046575,120]
[355408502,1741111848319,-605.48885563,0.00046575,120]
[355408503,1741111848329,-588.85,0.00046575,120]
[355408504,1741111848339,-630.00146257,0.00046575,120]
[355408505,1741111848349,-1438.83,0.00046575,30]
[355408506,1741111848359,-500.0,0.00046575,120]
[355408507,1741111848369,-1138.47,0.00046575,120]
[355408508,1741111848379,-579.85,0.00046575,120]
[355408509,1741111848389,-500.0,0.00046575,120]
[355408510,1741111848399,-500.0,0.00046575,120]
[355408511,1741111848409,-500.0,0.00046575,120]
[355408512,1741111848418,-500.0,0.00046575,120]
[355408513,1741111848427,-1144.65,0.00046575,120]
[355408514,1741111848437,-631.51,0.00046575,120]
[355408515,1741111848446,-1996.89,0.00046575,6]
[355408516,1741111848456,-2985.69,0.00046575,120]
[355408517,1741111848465,-500.0,0.00046575,120]
[355408518,1741111848474,-1234.49,0.00046575,120]
[355408519,1741111848484,-500.0,0.00046575,120]
[355408520,1741111848494,-500.0,0.00046575,120]
[355408521,1741111848505,-500.0,0.00046575,120]
[355408522,1741111848515,-342.48420606,0.00046575,120]
[355408523,1741111848526,-500.0,0.00046575,120]
[355408524,1741111848537,-500.0,0.00046575,120]
[355408525,1741111848547,-668.01,0.00046575,120]
[355408526,1741111848557,-664.52,0.00046575,120]
[355408527,1741111848567,-311.14376537,0.00046575,120]
[355408528,1741111848577,-1063.72,0.00046575,120]
[355408529,1741111848587,-1539.06,0.00046575,120]
[355408530,1741111848597,-1866.91,0.00046575,120]
[355408531,1741111848607,-2228.37,0.00046575,120]
[355408532,1741111848617,-825.14,0.00046575,120]
[355408533,1741111848626,-500.0,0.00046575,120]
[355408534,1741111848636,-918.75,0.00046575,120]
[355408535,1741111848646,-500.0,0.00046575,120]
[355408536,1741111848656,-500.0,0.00046575,120]
[355408537,1741111848666,-500.0,0.00046575,120]
[355408538,1741111848676,-500.0,0.00046575,120]
[355408539,1741111848687,-42019.23,0.00046575,7]
[355408540,1741111848697,-2853.89,0.00046575,120]
[355408541,1741111848708,-1000.0,0.00046575,30]
[355408542,1741111848718,-1000.0,0.00046575,30]
[355408543,1741111848730,-400.0,0.00046575,60]
[355408544,1741111848741,-22780.69068597,0.00046581,30]
[355408545,1741111848751,-166.97,0.000466,30]
[355408546,1741111848760,-152.2,0.000466,30]
[355408547,1741111848770,-6789.31,0.000466,30]
[355408548,1741111848781,-775.13819293,0.00046675,92]
[355408549,1741111848793,-397.0,0.0004677,2]
[355408550,1741111848803,-775.13819293,0.00046775,94]
[355408551,1741111848814,-960.0,0.000468,7]
[355408552,1741111848825,-128392.3329323,0.000468,2]
[355408553,1741111848955,-1023.82055667,0.000468,2]
[355408554,1741111849461,-197.99734547,0.0003207,2]
[355408555,1741111849471,-695.89445453,0.0003579,2]
[355408556,1741111849482,-6985.0,0.0003579,2]
[355408557,1741111849862,-534.50795572,0.0003579,2]
[355408558,1741111849879,-1147.8055786,0.0003579,2]
[355408559,1741111849888,-218.0,0.00043617,2]
[355408560,1741111849898,-397.0,0.0004377,2]
[355408561,1741111849907,-37825.34,0.00043825,10]
[355408562,1741111849916,-500.0,0.00043835,120]
[355408563,1741111849926,-500.0,0.00043835,120]
[355408564,1741111849936,-500.0,0.00043835,2]
[355408565,1741111849946,-500.0,0.00043835,120]
[355408566,1741111849955,-500.0,0.00044373,10]
[355408567,1741111849965,-500.0,0.00044383,120]
[355408568,1741111849975,-9363.2079888,0.00044663,28]
[355408569,1741111849986,-218.0,0.00046617,2]
[355408570,1741111849995,-397.0,0.0004677,2]
[355408571,1741111850005,-32889.77254575,0.000468,2]
[355408572,1741111850017,-59694.07396528,0.000468,2]
[355408573,1741111850027,-1285.618035,0.0004684,19]
[355408574,1741111850038,-150.0,0.00046849,2]
[355408575,1741111850047,-151.0,0.00046849,120]
[355408576,1741111850057,-317.449408,0.00046849,2]
[355408577,1741111850067,-317.449408,0.00046849,2]
[355408578,1741111850076,-156.096007,0.00046849,120]
[355408579,1741111850086,-156.096007,0.00046849,120]
[355408580,1741111850095,-1000.0,0.0004686,19]
[355408581,1741111850106,-775.13819293,0.00046875,92]
[355408582,1741111850118,-1000.0,0.0004688,19]
[355408583,1741111850127,-1070.254491,0.0004688,19]
[355408584,1741111850137,-3000.0,0.00046884,2]
[355408585,1741111850147,-8660.27037845,0.000469,7]
[355408586,1741111850163,-150.0,0.000469,120]
[355408587,1741111850175,-369.91,0.000469,30]
[355408588,1741111850184,-447.71,0.000469,30]
[355408589,1741111850195,-436.39,0.000469,30]
[355408590,1741111850206,-1000.0,0.000469,19]
[355408591,1741111850216,-1000.0,0.000469,19]
[355408592,1741111850225,-2000.0,0.000469,42]
[355408593,1741111850235,-150.0,0.000469,120]
[355408594,1741111850244,-8814.34320166,0.000469,2]
[355408595,1741111850253,-1000.0,0.0004691,30]
[355408596,1741111850263,-192.192086,0.0004691,120]
[355408597,1741111850272,-151.0,0.00046935,120]
[355408598,1741111850282,-151.0,0.00046935,120]
[355408599,1741111850292,-198.392884,0.00046935,120]
[355408600,1741111850301,-317.449408,0.00046935,2]
[355408601,1741111850311,-317.449408,0.00046935,2]
[355408602,1741111850321,-317.449408,0.00046935,2]
[355408603,1741111850331,-317.449408,0.00046935,2]
[355408604,1741111850340,-317.449408,0.00046935,2]
[355408605,1741111850349,-317.449408,0.00046935,2]
[355408606,1741111850359,-151.0,0.00046935,120]
[355408607,1741111850369,-151.0,0.00046935,120]
[355408608,1741111850378,-151.0,0.00046935,120]
[355408609,1741111850388,-151.0,0.00046935,120]
[355408610,1741111850397,-441.735743,0.00046935,14]
[355408611,1741111850407,-151.0,0.00046935,120]
[355408612,1741111850416,-151.0,0.00046935,120]
[355408613,1741111850426,-151.0,0.00046935,120]
[355408614,1741111850435,-151.0,0.00046935,120]
[355408615,1741111850445,-151.0,0.00046935,120]
[355408616,1741111850455,-151.0,0.00046935,120]
[355408617,1741111850465,-151.0,0.00046935,120]
[355408618,1741111850475,-222.305404,0.00046935,120]
[355408619,1741111850484,-156.096007,0.00046935,120]
[355408620,1741111850494,-156.096007,0.00046935,120]
[355408621,1741111850503,-156.096007,0.00046935,120]
[355408622,1741111850513,-156.096007,0.00046935,120]
[355408623,1741111850522,-156.096007,0.00046935,120]
[355408624,1741111850531,-156.096007,0.00046935,120]
[355408625,1741111850543,-207.51728,0.00046935,120]
[355408626,1741111850552,-207.51728,0.00046935,120]
[355408627,1741111850562,-207.51728,0.00046935,120]
[355408628,1741111850572,-207.51728,0.00046935,120]
[355408629,1741111850581,-207.51728,0.00046935,120]
[355408630,1741111850591,-207.51728,0.00046935,120]
[355408631,1741111850601,-207.51728,0.00046935,120]
[355408632,1741111850610,-207.51728,0.00046935,120]
[355408633,1741111850620,-151.0,0.00046935,120]
[355408634,1741111850630,-500.0,0.00046937,17]
[355408635,1741111850640,-500.0,0.00046937,17]
[355408636,1741111850650,-73612.14745646,0.00046939,30]
[355408637,1741111850659,-317.449408,0.00046939,2]
[355408638,1741111850669,-317.449408,0.00046939,2]
[355408639,1741111850679,-151.0,0.00046939,120]
[355408640,1741111850689,-151.0,0.00046939,120]
[355408641,1741111850699,-156.096007,0.00046939,120]
[355408642,1741111850709,-156.096007,0.00046939,120]
[355408643,1741111850719,-207.51728,0.00046939,120]
[355408644,1741111850729,-207.51728,0.00046939,120]
[355408645,1741111850739,-151.0,0.0004694,120]
[355408646,1741111850748,-151.421735,0.0004694,120]
[355408647,1741111850758,-220.0,0.0004694,30]
[355408648,1741111850768,-151.13,0.00046958,120]
[355408649,1741111850777,-903.13648244,0.00046958,2]
[355408650,1741111850790,-202.22191103,0.0004696,30]
[355408651,1741111850799,-206.95485341,0.0004696,30]
[355408652,1741111850809,-315.0,0.0004696,30]
[355408653,1741111850819,-315.0,0.0004696,30]
[355408654,1741111850829,-315.0,0.0004696,30]
[355408655,1741111850838,-315.0,0.0004696,30]
[355408656,1741111850848,-315.0,0.0004696,30]
[355408657,1741111850857,-315.0,0.0004696,30]
[355408658,1741111850867,-315.0,0.0004696,30]
[355408659,1741111850876,-315.0,0.0004696,30]
[355408660,1741111850886,-315.0,0.0004696,30]
[355408661,1741111850895,-315.0,0.0004696,30]
[355408662,1741111850905,-315.0,0.0004696,30]
[355408663,1741111850915,-315.0,0.0004696,30]
[355408664,1741111850924,-315.0,0.0004696,30]
[355408665,1741111850934,-338.9483774,0.0004696,30]
[355408666,1741111850943,-151.0,0.00046973,120]
[355408667,1741111850953,-151.0,0.00046973,120]
[355408668,1741111850962,-151.0,0.00046973,120]
[355408669,1741111850971,-151.0,0.00046973,120]
[355408670,1741111850981,-151.0,0.00046973,120]
[355408671,1741111850990,-151.0,0.00046973,120]
[355408672,1741111851000,-243.465013,0.00046973,120]
[355408673,1741111851008,-151.0,0.00046973,120]
[355408674,1741111851017,-151.0,0.00046973,120]
[355408675,1741111851026,-151.0,0.00046973,120]
[355408676,1741111851037,-151.0,0.00046973,120]
[355408677,1741111851046,-151.0,0.00046973,120]
[355408678,1741111851055,-151.0,0.00046973,120]
[355408679,1741111851064,-151.0,0.00046973,120]
[355408680,1741111851073,-151.0,0.00046973,120]
[355408681,1741111851083,-152.552324,0.00046973,120]
[355408682,1741111851092,-151.0,0.00046973,120]
[355408683,1741111851101,-151.0,0.00046973,120]
[355408684,1741111851114,-189.038656,0.00046973,120]
[355408685,1741111851124,-189.038656,0.00046973,120]
[355408686,1741111851133,-189.038656,0.00046973,120]
[355408687,1741111851143,-189.038656,0.00046973,120]
[355408688,1741111851154,-189.038656,0.00046973,120]
[355408689,1741111851164,-351.0,0.00046973,30]
[355408690,1741111851173,-351.0,0.00046973,30]
[355408691,1741111851184,-351.0,0.00046973,30]
[355408692,1741111851194,-351.0,0.00046973,30]
[355408693,1741111851204,-351.0,0.00046973,30]
[355408694,1741111851214,-351.0,0.00046973,30]
[355408695,1741111851224,-351.0,0.00046973,30]
[355408696,1741111851233,-351.0,0.00046973,30]
[355408697,1741111851242,-351.0,0.00046973,30]
[355408698,1741111851252,-351.0,0.00046973,30]
[355408699,1741111851261,-351.0,0.00046973,30]
[355408700,1741111851271,-351.0,0.00046973,30]
[355408701,1741111851281,-351.0,0.00046973,30]
[355408702,1741111851293,-351.0,0.00046973,30]
[355408703,1741111851303,-392.60160343,0.00046973,30]
[355408704,1741111851316,-189.038656,0.00046973,120]
[355408705,1741111851326,-189.038656,0.00046973,120]
[355408706,1741111851336,-189.038656,0.00046973,120]
[355408707,1741111851346,-189.038656,0.00046973,120]
[355408708,1741111851356,-189.038656,0.00046973,120]
[355408709,1741111851366,-151.0,0.00046973,120]
[355408710,1741111851376,-151.0,0.00046973,120]
[355408711,1741111851385,-151.0,0.00046973,120]
[355408712,1741111851395,-151.0,0.00046973,120]
[355408713,1741111851405,-151.0,0.00046973,120]
[355408714,1741111851414,-151.0,0.00046973,120]
[355408715,1741111851423,-151.0,0.00046973,120]
[355408716,1741111851433,-151.0,0.00046973,120]
[355408717,1741111851443,-151.0,0.00046973,120]
[355408718,1741111851453,-151.0,0.00046973,120]
[355408719,1741111851462,-151.0,0.00046973,120]
[355408720,1741111851472,-151.0,0.00046973,120]
[355408721,1741111851481,-151.0,0.00046973,120]
[355408722,1741111851491,-151.0,0.00046973,120]
[355408723,1741111851500,-151.0,0.00046973,120]
[355408724,1741111851511,-151.0,0.00046973,120]
[355408725,1741111851523,-151.0,0.00046973,120]
[355408726,1741111851538,-151.0,0.00046973,120]
[355408727,1741111851549,-156.107658,0.00046973,120]
[355408728,1741111851564,-775.13819293,0.00046975,91]
[355408729,1741111851576,-199.999999,0.00047,120]
[355408730,1741111851588,-528.44,0.00047,120]
[355408731,1741111851604,-151.0,0.00047,30]
[355408732,1741111851621,-999.0,0.00047038,120]
[355408733,1741111851631,-500.0,0.0004705,120]
[355408734,1741111851644,-500.0,0.0004705,120]
[355408735,1741111851659,-500.0,0.0004705,120]
[355408736,1741111851672,-500.0,0.0004705,120]
[355408737,1741111851683,-500.0,0.0004705,120]
[355408738,1741111851693,-500.0,0.0004705,120]
[355408739,1741111851703,-510.76,0.00047057,7]
[355408740,1741111851712,-510.76,0.00047057,7]
[355408741,1741111851722,-510.76,0.00047057,7]
[355408742,1741111851732,-510.76,0.00047057,7]
[355408743,1741111851743,-510.76,0.00047057,7]
[355408744,1741111851755,-510.76,0.00047057,7]
[355408745,1741111851765,-510.76,0.00047057,7]
[355408746,1741111851774,-510.76,0.00047057,7]
[355408747,1741111851789,-1555.71906012,0.00047058,40]
[355408748,1741111851799,-8960.11963632,0.00047058,40]
[355408749,1741111851809,-290.14119297,0.00047058,30]
[355408750,1741111851819,-76299.57260024,0.00047058,15]
[355408751,1741111851829,-743438.94115901,0.00047058,20]
[355408752,1741111851840,-142972.13245322,0.00047058,20]
[355408753,1741111851851,-38691.91788975,0.00047058,2]
[355408754,1741111851862,-187.48464936,0.00047058,2]
[355408755,1741111851874,-1384.10637565,0.00047058,2]
[355408756,1741111851894,-300.4345564,0.00047058,2]
[355408757,1741111851913,-581.4625089,0.00047058,2]
[355408758,1741111851924,-502.67673423,0.00047058,2]
[355408759,1741111851936,-19368.07831588,0.00047058,15]
[355408760,1741111851945,-253210.4975594,0.00047058,2]
[355408761,1741111851956,-4542.578726,0.00047058,3]
[355408762,1741111851966,-1532.85509676,0.00047058,7]
[355408763,1741111851976,-146999.56196139,0.00047058,2]
[355408764,1741111851986,-400.0,0.00047058,2]
[355408765,1741111851996,-339.6203093,0.00047058,20]
[355408766,1741111852006,-3376.32624651,0.00047058,2]
[355408767,1741111852016,-32368.64004435,0.00047058,7]
[355408768,1741111852030,-2339.275,0.00047058,7]
[355408769,1741111852044,-3751.98342759,0.00047058,7]
[355408770,1741111852054,-5834.66013976,0.00047058,2]
[355408771,1741111852063,-4718.55643266,0.00047058,14]
[355408772,1741111852075,-4273.449993,0.00047058,14]
[355408773,1741111852138,-500.0,0.00043835,120]
[355408774,1741111852148,-249.0,0.00044921,30]
[355408775,1741111852159,-7837.5,0.00047058,14]
[355408787,1741112471502,238.91548,0.00027,120]
[355408788,1741112610214,1996.36137907,0.00028,10]
[355408789,1741112618797,2111.28725691,0.00028,10]
[355408794,1741112857730,355.0,0.00047056,120]
[355408795,1741112914445,1479.82903376,0.00047056,90]
[355408796,1741112920042,653.69619164,0.00047056,120]
[355408797,1741112920555,419.40880031,0.00047056,120]
[355408798,1741112920590,212.28855285,0.00047056,120]
[355408799,1741112921420,225.14086279,0.00047056,120]
[355408800,1741112921960,311.65772603,0.00047056,120]
[355408801,1741112921999,6132.5458245,0.00047056,120]
[355408802,1741112957100,-1349.86296462,0.0001711,2]
[355408860,1741113031887,-8585.29483984,0.0001711,2]
[355408863,1741113031899,-20121.03402633,0.0001711,2]
[355408865,1741113031909,-2044.49137723,0.000176,2]
[355408867,1741113031918,-660.12227468,0.00019,2]
[355408869,1741113031927,-355.52726147,0.0002,2]
[355408870,1741113031937,-2054.89228553,0.0002023,2]
[355408872,1741113031946,-16187.54897835,0.0002035,2]
[355408874,1741113031956,-264.68806074,0.00021,2]
[355408876,1741113031965,-10391.62411059,0.00021,2]
[355408878,1741113031975,-238.5643862,0.00021,2]
[355408880,1741113031984,-431.04172678,0.000259,4]
[355408881,1741113031993,-218.0,0.0003,2]
[355408883,1741113032002,-956.01410728,0.0003207,2]
[355408901,1741113037795,-4017.91456615,0.0003207,2]
[355408902,1741113037809,-351.30122109,0.0003207,2]
[355408903,1741113037819,-387.14654329,0.0003399,3]
[355408904,1741113037924,-165.67345671,0.0003399,3]
[355408905,1741113037934,-21029.86727547,0.00034,2]
[355408906,1741113037944,-166.98,0.00034,7]
[355408907,1741113037954,-392.18311816,0.00034999,7]
[355408908,1741113037963,-598.02313968,0.00034999,7]
[355408909,1741113037973,-500.0,0.00034999,2]
[355408910,1741113037983,-500.0,0.00034999,7]
[355408911,1741113037993,-500.0,0.00034999,2]
[355408912,1741113038002,-348.43288377,0.00034999,2]
[355408913,1741113038012,-500.0,0.00034999,7]
[355408914,1741113038021,-500.0,0.00034999,2]
[355408915,1741113038031,-500.0,0.00034999,7]
[355408916,1741113038040,-500.0,0.00034999,2]
[355408917,1741113038049,-500.0,0.00034999,7]
[355408918,1741113038061,-500.0,0.00034999,2]
[355408919,1741113038071,-500.0,0.00034999,2]
[355408920,1741113038080,-500.0,0.00034999,7]
[355408921,1741113038090,-500.0,0.00034999,2]
[355408922,1741113038100,-500.0,0.00034999,2]
[355408923,1741113038110,-286.91162337,0.00034999,7]
[355408925,1741113038119,-500.0,0.00034999,2]
[355408926,1741113038129,-500.0,0.00034999,2]
[355408928,1741113038138,-500.0,0.00034999,2]
[355408930,1741113038149,-500.0,0.00034999,2]
[355408932,1741113038159,-20072.48782765,0.00035,2]
[355408933,1741113038168,-160.0,0.0003543,2]
[355408935,1741113038178,-500.0,0.0003589,2]
[355408936,1741113038188,-250.0,0.00036354,2]
[355408938,1741113038197,-500.0,0.0003712,5]
[355408939,1741113038206,-24900.0,0.0003781,2]
[355408941,1741113038216,-1500.2821399,0.00038,2]
[355408943,1741113038226,-500.0,0.00038267,5]
[355408944,1741113038236,-7022.4059916,0.00038351,2]
[355408946,1741113038246,-180.689599,0.00038352,2]
[355408947,1741113038255,-3302.090607,0.00038451,2]
[355408948,1741113038264,-892.830527,0.00038811,2]
[355408949,1741113038274,-276.4,0.00038989,3]
[355408950,1741113038284,-10000.0,0.00038999,2]
[355408951,1741113038294,-14530.999997,0.0004,2]
[355408952,1741113038303,-7177.0,0.0004,2]
[355408953,1741113038313,-552.8,0.00040359,3]
[355408954,1741113038323,-500.0,0.00041211,2]
[355408955,1741113038333,-397.31086655,0.0004198,2]
[355408956,1741113038342,-168.28,0.00042247,2]
[355408957,1741113038352,-168.28,0.00042247,2]
[355408958,1741113038362,-276.4,0.00042248,30]
[355408959,1741113038371,-168.28,0.00042248,2]
[355408960,1741113038381,-1959.0,0.00042258,2]
[355408961,1741113038391,-539.0,0.00042258,2]
[355408962,1741113038400,-2276.0,0.00042258,2]
[355408963,1741113038410,-313.4,0.000423,30]
[355408964,1741113038419,-7678.52,0.000423,30]
[355408965,1741113038429,-155.173,0.000429,65]
[355408966,1741113038438,-168.28,0.0004299,2]
[355408967,1741113038447,-5680.9050547,0.00043,2]
[355408968,1741113038456,-727.17265052,0.00043466,3]
[355408969,1741113038466,-727.17265052,0.00043478,3]
[355408970,1741113038475,-727.17265052,0.00043498,3]
[355408971,1741113038484,-999.0,0.00043506,120]
[355408972,1741113038495,-192.6,0.00043508,30]
[355408973,1741113038505,-3635.8632526,0.00043508,3]
[355408974,1741113038515,-358.61331853,0.00043517,31]
[355408975,1741113038524,-500.0,0.00043517,31]
[355408976,1741113038535,-500.0,0.00043517,31]
[355408977,1741113038544,-411.7601475,0.00043517,31]
[355408978,1741113038554,-349.14764492,0.00043517,31]
[355408979,1741113038565,-500.0,0.00043517,31]
[355408980,1741113038577,-500.0,0.00043517,31]
[355408981,1741113038587,-500.0,0.00043517,31]
[355408982,1741113038596,-500.0,0.00043517,31]
[355408983,1741113038606,-297.86692244,0.00043517,31]
[355408984,1741113038616,-500.0,0.00043517,31]
[355408985,1741113038626,-500.0,0.00043517,31]
[355408986,1741113038636,-500.0,0.00043517,31]
[355408987,1741113038645,-222000.0,0.00043518,2]
[355408988,1741113038655,-305.47,0.000436,30]
[355408989,1741113038665,-152.2,0.000436,30]
[355408990,1741113038675,-447.88,0.000436,30]
[355408991,1741113038686,-3000.0,0.00043735,2]
[355408992,1741113038695,-500.0,0.00043746,10]
[355408993,1741113038705,-2181.51795156,0.00043825,3]
[355408994,1741113038715,-500.0,0.00043835,120]
[355408995,1741113038725,-500.0,0.00043835,120]
[355408996,1741113038735,-500.0,0.00043835,120]
[355408997,1741113038745,-500.0,0.00043835,120]
[355408998,1741113038755,-500.0,0.00043835,120]
[355408999,1741113038764,-150.0,0.00043835,2]
[355409000,1741113038774,-1000.0,0.00043835,120]
[355409001,1741113038783,-500.0,0.00043835,120]
[355409002,1741113038793,-500.0,0.00043835,120]
[355409003,1741113038803,-500.0,0.00043835,120]
[355409004,1741113038815,-500.0,0.00043835,120]
[355409005,1741113038825,-500.0,0.00043835,120]
[355409006,1741113038835,-500.0,0.00043835,120]
[355409007,1741113038845,-500.0,0.00043835,120]
[355409008,1741113038855,-500.0,0.00043835,120]
[355409009,1741113038864,-503.4438471,0.00043835,120]
[355409010,1741113038874,-500.0,0.00043835,120]
[355409011,1741113038884,-503.24,0.00043835,120]
[355409012,1741113038893,-500.0,0.00043835,120]
[355409013,1741113038903,-500.0,0.00043835,120]
[355409014,1741113038912,-500.0,0.00043835,120]
[355409015,1741113038922,-500.0,0.00043835,120]
[355409016,1741113038932,-500.0,0.00043835,120]
[355409017,1741113038941,-500.0,0.00043835,120]
[355409018,1741113038951,-500.0,0.00043835,120]
[355409019,1741113038960,-500.0,0.00043835,120]
[355409020,1741113038969,-500.0,0.00043835,120]
[355409021,1741113038979,-500.0,0.00043835,120]
[355409022,1741113038988,-500.0,0.00043835,120]
[355409023,1741113038998,-500.0,0.00043835,120]
[355409024,1741113039007,-500.0,0.00043835,120]
[355409025,1741113039017,-500.0,0.00043835,120]
[355409026,1741113039027,-501.95488389,0.00043835,120]
[355409027,1741113039037,-500.0,0.00043835,120]
[355409028,1741113039047,-500.0,0.00043835,120]
[355409029,1741113039056,-500.0,0.00043835,120]
[355409030,1741113039067,-500.0,0.00043835,120]
[355409031,1741113039077,-500.0,0.00043835,120]
[355409032,1741113039087,-500.0,0.00043835,120]
[355409033,1741113039096,-502.5,0.00043835,120]
[355409034,1741113039105,-500.0,0.00043835,120]
[355409035,1741113039115,-500.0,0.00043835,120]
[355409036,1741113039124,-500.0,0.00043835,120]
[355409037,1741113039133,-500.0,0.00043835,120]
[355409038,1741113039143,-500.0,0.00043835,120]
[355409039,1741113039153,-500.0,0.00043835,120]
[355409040,1741113039162,-233.18462087,0.00043835,120]
[355409041,1741113039172,-500.0,0.00043835,120]
[355409042,1741113039181,-500.0,0.00043835,120]
[355409043,1741113039191,-500.0,0.00043835,120]
[355409044,1741113039201,-500.0,0.00043835,120]
[355409045,1741113039210,-424.02866494,0.00043835,120]
[355409046,1741113039220,-500.0,0.00043835,120]
[355409047,1741113039229,-500.0,0.00043835,120]
[355409048,1741113039239,-500.0,0.00043835,120]
[355409049,1741113039248,-500.0,0.00043835,120]
[355409050,1741113039258,-500.0,0.00043835,120]
[355409051,1741113039267,-500.0,0.00043835,120]
[355409052,1741113039276,-1901.98,0.00043835,120]
[355409053,1741113039286,-500.0,0.00043835,120]
[355409054,1741113039295,-500.0,0.00043835,120]
[355409055,1741113039305,-500.0,0.00043835,120]
[355409056,1741113039315,-500.0,0.00043835,120]
[355409057,1741113039324,-500.0,0.00043835,120]
[355409058,1741113039333,-500.0,0.00043835,120]
[355409059,1741113039343,-500.0,0.00043835,120]
[355409060,1741113039352,-500.0,0.00043835,120]
[355409061,1741113039362,-500.0,0.00043835,120]
[355409062,1741113039371,-601.76147562,0.00043835,120]
[355409063,1741113039381,-500.0,0.00043835,120]
[355409064,1741113039391,-500.0,0.00043835,120]
[355409065,1741113039400,-500.0,0.00043835,120]
[355409066,1741113039409,-500.0,0.00043835,120]